[Event "44th Chess Olympiad Women 2022"]
[Site "Chennai"]
[Date "2022.08.06"]
[Round "8.32"]
[White "Guillen Cristobal, Sandra N"]
[Black "Sovetbekova, Nurai"]
[Result "0-1"]
[WhiteElo "1962"]
[BlackElo "1693"]
[Annotator "NA RC"]
[PlyCount "114"]
[EventDate "2022.??.??"]
[TimeControl "60"]

1. e4 {[%emt 0:00:03]} c5 {[%emt 0:00:10]} 2. Nf3 {[%emt 0:00:07]} d6 {[%emt 0:
00:00]} 3. d4 {[%emt 0:00:05]} cxd4 {[%emt 0:00:04]} 4. Nxd4 {[%emt 0:00:05]}
Nf6 {[%emt 0:00:03]} 5. Nc3 {[%emt 0:00:12]} a6 {[%emt 0:00:04]} 6. Be3 {
[%emt 0:00:12]} e5 {[%emt 0:00:29]} 7. Nf3 {[%emt 0:01:23]} Be7 {[%emt 0:01:27]
} 8. h3 {[%emt 0:00:13]} Qc7 {[%emt 0:08:07]} 9. Qd2 {[%emt 0:01:06]} b5 {
[%emt 0:01:14]} 10. a3 {[%emt 0:12:28]} Bb7 {[%emt 0:02:44]} 11. Bd3 {[%emt 0:
00:00]} Nbd7 {[%emt 0:01:57]} 12. Qe2 {[%emt 0:04:08]} Nc5 {[%emt 0:16:14]} 13.
Bd2 {[%emt 0:00:21]} Qc6 {[%emt 0:07:30]} 14. O-O {[%emt 0:17:34]} Nfxe4 {
[%emt 0:03:13]} 15. Nxe4 {[%emt 0:03:46]} Nxe4 {[%emt 0:00:05]} 16. Bb4 {
[%emt 0:00:12]} Ng5 {[%emt 0:04:08]} 17. Rfe1 {[%emt 0:01:05]} Nxf3+ {[%emt 0:
00:00]} 18. Qxf3 {[%emt 0:00:35]} Qxf3 {[%emt 0:00:08]} 19. gxf3 {[%emt 0:00:
00]} Bxf3 {[%emt 0:00:08]} 20. a4 {[%emt 0:01:03]} bxa4 {[%emt 0:15:58]} 21.
Rxa4 {[%emt 0:00:07]} O-O {[%emt 0:03:46]} 22. Rea1 {[%emt 0:06:56]} Rfb8 {
[%emt 0:05:15]} 23. c3 {[%emt 0:00:17]} Rb6 {[%emt 0:05:05]} 24. Bxa6 {[%emt 0:
00:00]} Bc6 {[%emt 0:01:43]} 25. R4a3 {[%emt 0:00:14]} Kf8 {[%emt 0:02:25]} 26.
Bf1 {[%emt 0:06:52]} Rxa3 {[%emt 0:00:36]} 27. Rxa3 {[%emt 0:00:08]} d5 {
[%emt 0:00:30]} 28. Bxe7+ {[%emt 0:01:00]} Kxe7 {[%emt 0:00:01]} 29. Ra7+ {
[%emt 0:00:50]} Rb7 {[%emt 0:02:42]} 30. Rxb7+ {[%emt 0:04:43]} Bxb7 {[%emt 0:
00:00]} 31. f3 {[%emt 0:00:09]} d4 {[%emt 0:03:47]} 32. cxd4 {[%emt 0:03:23]}
exd4 {[%emt 0:00:03]} 33. Kf2 {[%emt 0:00:15]} Kd6 {[%emt 0:01:26]} 34. b4 {
[%emt 0:00:10]} Ke5 {[%emt 0:01:47]} 35. Kg3 {[%emt 0:00:31]} g5 {[%emt 0:00:
00]} 36. Kg4 {[%emt 0:01:49]} f6 {[%emt 0:02:15]} 37. Bd3 {[%emt 0:05:09]} h5+
{[%emt 0:03:36]} 38. Kg3 {[%emt 0:01:09]} h4+ {[%emt 0:01:46]} 39. Kf2 {
[%emt 0:00:57]} Kf4 {[%emt 0:00:23]} 40. Be2 {[%emt 0:00:26]} Ke5 {[%emt 0:00:
00]} 41. Bd3 {[%emt 0:31:43]} Kf4 {[%emt 0:30:46]} 42. Be2 {[%emt 0:00:19]} Bc8
{[%emt 0:00:00]} 43. Bf1 {[%emt 0:00:00]} Ke5 {[%emt 0:00:00]} 44. Kg2 {
[%emt 0:00:00]} Bf5 {[%emt 0:00:00]} 45. Kf2 {[%emt 0:00:00]} Kd5 {[%emt 0:00:
00]} 46. Ke1 {[%emt 0:00:00]} Bd7 {[%emt 0:00:00]} 47. Kf2 {[%emt 0:00:00]} Kc6
{[%emt 0:00:00]} 48. f4 {[%emt 0:00:00]} Kb6 {[%emt 0:01:36]} 49. fxg5 {
[%emt 0:00:00]} fxg5 {[%emt 0:00:02]} 50. Kf3 {[%emt 0:00:00]} Bb5 {[%emt 0:00:
00]} 51. Bxb5 {[%emt 0:00:00]} Kxb5 {[%emt 0:00:01]} 52. Ke4 {[%emt 0:00:00]}
g4 {[%emt 0:01:49]} 53. hxg4 {[%emt 0:00:00]} h3 {[%emt 0:00:01]} 54. Kxd4 {
[%emt 0:00:00]} h2 {[%emt 0:00:06]} 55. Ke5 {[%emt 0:00:00]} h1=Q {[%emt 0:00:
00]} 56. g5 {[%emt 0:00:00]} Qh8+ {[%emt 0:00:13]} 57. Ke6 {[%emt 0:00:00]} Qg7
{[%emt 0:00:06]} 0-1

[Event "44th Chess Olympiad Women 2022"]
[Site "Chennai"]
[Date "2022.08.06"]
[Round "8.32"]
[White "Sezdbekova Aizhan"]
[Black "Hernandez Diaz, Paula Sofia"]
[Result "0-1"]
[WhiteElo "1615"]
[BlackElo "1751"]
[Annotator "NA RC"]
[PlyCount "80"]
[EventDate "2022.??.??"]
[TimeControl "60"]

1. e4 {[%emt 0:00:04]} c5 {[%emt 0:00:09]} 2. Nf3 {[%emt 0:00:09]} Nc6 {
[%emt 0:00:14]} 3. c3 {[%emt 0:00:33]} d5 {[%emt 0:00:10]} 4. exd5 {[%emt 0:00:
00]} Qxd5 {[%emt 0:00:09]} 5. d4 {[%emt 0:01:13]} Bf5 {[%emt 0:00:13]} 6. Be3 {
[%emt 0:09:26]} Nf6 {[%emt 0:04:34]} 7. Be2 {[%emt 0:13:59]} e6 {[%emt 0:08:24]
} 8. O-O {[%emt 0:07:15]} Be7 {[%emt 0:06:22]} 9. Na3 {[%emt 0:07:00]} O-O {
[%emt 0:06:38]} 10. Nc4 {[%emt 0:13:12]} Rad8 {[%emt 0:29:28]} 11. Qb3 {
[%emt 0:03:53]} cxd4 {[%emt 0:05:48]} 12. Nxd4 {[%emt 0:05:03]} b6 {[%emt 0:00:
00]} 13. Rad1 {[%emt 0:08:28]} Nxd4 {[%emt 0:02:18]} 14. Bxd4 {[%emt 0:01:31]}
Qa8 {[%emt 0:01:35]} 15. Rfe1 {[%emt 0:04:30]} Be4 {[%emt 0:09:48]} 16. f3 {
[%emt 0:06:17]} Bf5 {[%emt 0:05:27]} 17. Ne3 {[%emt 0:05:18]} Bg6 {[%emt 0:00:
00]} 18. Bc4 {[%emt 0:01:08]} Nd7 {[%emt 0:01:41]} 19. Ng4 {[%emt 0:03:50]} Nc5
{[%emt 0:01:36]} 20. Bxc5 {[%emt 0:00:24]} Bxc5+ {[%emt 0:00:02]} 21. Kh1 {
[%emt 0:00:55]} Kh8 {[%emt 0:03:02]} 22. Ne5 {[%emt 0:01:23]} Bf5 {[%emt 0:00:
00]} 23. Nd7 {[%emt 0:01:12]} Rg8 {[%emt 0:02:49]} 24. Qa4 {[%emt 0:01:49]} Qc8
{[%emt 0:01:12]} 25. Ne5 {[%emt 0:02:00]} Rgf8 {[%emt 0:00:32]} 26. Rxd8 {
[%emt 0:00:56]} Qxd8 {[%emt 0:00:28]} 27. Rd1 {[%emt 0:00:28]} Qc7 {[%emt 0:00:
00]} 28. f4 {[%emt 0:00:35]} Bd6 {[%emt 0:00:32]} 29. Qb5 {[%emt 0:00:30]} f6 {
[%emt 0:00:31]} 30. Nf3 {[%emt 0:00:31]} Bxf4 {[%emt 0:00:09]} 31. Rd7 {
[%emt 0:00:23]} Qc8 {[%emt 0:00:38]} 32. Nd4 {[%emt 0:00:39]} a6 {[%emt 0:00:
00]} 33. Qc6 {[%emt 0:00:13]} Qxc6 {[%emt 0:00:25]} 34. Nxc6 {[%emt 0:00:09]}
e5 {[%emt 0:00:10]} 35. Re7 {[%emt 0:00:40]} Be4 {[%emt 0:00:39]} 36. Nb4 {
[%emt 0:00:38]} Rd8 {[%emt 0:00:51]} 37. Bb3 {[%emt 0:00:38]} a5 {[%emt 0:00:
00]} 38. Na6 {[%emt 0:00:33]} h5 {[%emt 0:00:26]} 39. Nc7 {[%emt 0:00:37]} Rd2
{[%emt 0:00:15]} 40. Kg1 {[%emt 0:00:31]} Bxg2 {[%emt 0:00:16]} 0-1

[Event "44th Chess Olympiad Women 2022"]
[Site "Chennai"]
[Date "2022.08.06"]
[Round "8.33"]
[White "A-ALI, Sali Abbas Abdulzah"]
[Black "Liu, Yang Hazel"]
[Result "0-1"]
[WhiteElo "1864"]
[BlackElo "2046"]
[Annotator "NA RC"]
[PlyCount "140"]
[EventDate "2022.??.??"]
[TimeControl "60"]

1. e4 {[%emt 0:00:03]} c5 {[%emt 0:00:05]} 2. Nf3 {[%emt 0:00:05]} Nc6 {
[%emt 0:00:11]} 3. b3 {[%emt 0:00:38]} d6 {[%emt 0:06:09]} 4. Bb2 {[%emt 0:00:
00]} e6 {[%emt 0:02:35]} 5. Bb5 {[%emt 0:07:13]} Bd7 {[%emt 0:03:08]} 6. O-O {
[%emt 0:00:39]} Nf6 {[%emt 0:03:14]} 7. Nc3 {[%emt 0:04:01]} Be7 {[%emt 0:00:
00]} 8. Re1 {[%emt 0:01:59]} e5 {[%emt 0:03:22]} 9. h3 {[%emt 0:04:15]} O-O {
[%emt 0:01:41]} 10. a4 {[%emt 0:04:29]} g6 {[%emt 0:08:24]} 11. d3 {[%emt 0:00:
00]} Nh5 {[%emt 0:09:31]} 12. Bc4 {[%emt 0:02:43]} Rb8 {[%emt 0:05:55]} 13. Bc1
{[%emt 0:07:42]} a6 {[%emt 0:02:09]} 14. Bh6 {[%emt 0:08:20]} Ng7 {[%emt 0:00:
00]} 15. Qd2 {[%emt 0:07:32]} Nd4 {[%emt 0:09:49]} 16. Nxd4 {[%emt 0:06:11]}
cxd4 {[%emt 0:00:13]} 17. Ne2 {[%emt 0:00:54]} Bc6 {[%emt 0:06:32]} 18. b4 {
[%emt 0:04:07]} d5 {[%emt 0:00:51]} 19. exd5 {[%emt 0:02:38]} Bxd5 {[%emt 0:00:
00]} 20. Bxd5 {[%emt 0:01:06]} Qxd5 {[%emt 0:00:03]} 21. f4 {[%emt 0:08:31]}
exf4 {[%emt 0:04:45]} 22. Nxf4 {[%emt 0:04:19]} Qd6 {[%emt 0:00:34]} 23. Rab1 {
[%emt 0:00:14]} Bf6 {[%emt 0:01:05]} 24. Ne2 {[%emt 0:03:08]} Rbc8 {[%emt 0:00:
00]} 25. Rb2 {[%emt 0:01:53]} Rfe8 {[%emt 0:01:52]} 26. Bxg7 {[%emt 0:00:55]}
Kxg7 {[%emt 0:00:44]} 27. Rf1 {[%emt 0:04:44]} Re3 {[%emt 0:04:59]} 28. Nf4 {
[%emt 0:02:43]} Bh4 {[%emt 0:02:47]} 29. b5 {[%emt 0:03:20]} Bg3 {[%emt 0:00:
00]} 30. Ne2 {[%emt 0:00:07]} Bh2+ {[%emt 0:01:21]} 31. Kh1 {[%emt 0:00:07]}
Rce8 {[%emt 0:00:41]} 32. Ng1 {[%emt 0:00:51]} Bf4 {[%emt 0:01:09]} 33. Qf2 {
[%emt 0:00:28]} g5 {[%emt 0:00:51]} 34. Rbb1 {[%emt 0:01:44]} Qe6 {[%emt 0:00:
00]} 35. Nf3 {[%emt 0:00:33]} Qd5 {[%emt 0:01:12]} 36. bxa6 {[%emt 0:00:25]}
bxa6 {[%emt 0:00:12]} 37. Rfe1 {[%emt 0:00:45]} h6 {[%emt 0:01:50]} 38. Rxe3 {
[%emt 0:01:23]} dxe3 {[%emt 0:01:29]} 39. Qe2 {[%emt 0:00:13]} Qa2 {[%emt 0:00:
00]} 40. Rd1 {[%emt 0:01:07]} Qxa4 {[%emt 0:00:37]} 41. d4 {[%emt 0:31:55]} Rc8
{[%emt 0:31:20]} 42. Ne1 {[%emt 0:00:35]} Rc3 {[%emt 0:00:00]} 43. d5 {[%emt 0:
00:00]} Qc4 {[%emt 0:00:00]} 44. Qxc4 {[%emt 0:00:00]} Rxc4 {[%emt 0:00:00]}
45. d6 {[%emt 0:00:00]} Rc8 {[%emt 0:00:00]} 46. d7 {[%emt 0:00:00]} Rd8 {
[%emt 0:00:00]} 47. c4 {[%emt 0:00:00]} Bg3 {[%emt 0:00:00]} 48. c5 {[%emt 0:
00:00]} e2 {[%emt 0:00:00]} 49. Rd2 {[%emt 0:00:00]} Bxe1 {[%emt 0:00:00]} 50.
Rxe2 {[%emt 0:00:00]} Bg3 {[%emt 0:00:00]} 51. Rd2 {[%emt 0:00:00]} Kf6 {
[%emt 0:00:00]} 52. Kg1 {[%emt 0:00:00]} Ke7 {[%emt 0:00:00]} 53. c6 {[%emt 0:
00:00]} Bc7 {[%emt 0:00:00]} 54. Kf2 {[%emt 0:00:00]} Rb8 {[%emt 0:00:00]} 55.
Kf3 {[%emt 0:00:00]} Bd8 {[%emt 0:00:00]} 56. Ke4 {[%emt 0:00:00]} Rb5 {
[%emt 0:00:00]} 57. Kf3 {[%emt 0:00:00]} Rc5 {[%emt 0:00:00]} 58. Re2+ {
[%emt 0:00:00]} Kd6 {[%emt 0:00:00]} 59. Re8 {[%emt 0:00:01]} Kc7 {[%emt 0:00:
00]} 60. Rf8 {[%emt 0:00:28]} Rxc6 {[%emt 0:00:00]} 61. Kg4 {[%emt 0:00:34]}
Rc4+ {[%emt 0:00:29]} 62. Kf3 {[%emt 0:01:06]} Rf4+ {[%emt 0:00:04]} 63. Ke2 {
[%emt 0:00:11]} Kxd7 {[%emt 0:00:05]} 64. g3 {[%emt 0:00:18]} Rf6 {[%emt 0:00:
00]} 65. h4 {[%emt 0:00:41]} gxh4 {[%emt 0:02:38]} 66. gxh4 {[%emt 0:00:06]}
Rf5 {[%emt 0:00:13]} 67. Rh8 {[%emt 0:00:52]} Rh5 {[%emt 0:00:09]} 68. Rh7 {
[%emt 0:00:08]} Ke7 {[%emt 0:00:09]} 69. Kf3 {[%emt 0:00:14]} Rxh4 {[%emt 0:00:
00]} 70. Kg3 {[%emt 0:00:07]} Rh5 {[%emt 0:00:33]} 0-1

[Event "44th Chess Olympiad Women 2022"]
[Site "Chennai"]
[Date "2022.08.06"]
[Round "8.33"]
[White "Al-Fayyadh, Yamama Asif Abdula"]
[Black "Fang, Kun"]
[Result "0-1"]
[WhiteElo "1666"]
[BlackElo "1766"]
[Annotator "NA RC"]
[PlyCount "134"]
[EventDate "2022.??.??"]
[TimeControl "60"]

1. e4 {[%emt 0:00:03]} e5 {[%emt 0:00:04]} 2. Nf3 {[%emt 0:00:04]} Nc6 {
[%emt 0:00:03]} 3. Bb5 {[%emt 0:00:06]} a6 {[%emt 0:00:08]} 4. Ba4 {[%emt 0:00:
00]} Nf6 {[%emt 0:00:05]} 5. O-O {[%emt 0:00:14]} Be7 {[%emt 0:00:14]} 6. Re1 {
[%emt 0:00:15]} b5 {[%emt 0:00:04]} 7. Bb3 {[%emt 0:00:05]} d6 {[%emt 0:00:22]}
8. c3 {[%emt 0:00:07]} O-O {[%emt 0:00:05]} 9. h3 {[%emt 0:00:05]} Nb8 {
[%emt 0:03:26]} 10. d4 {[%emt 0:00:27]} Nbd7 {[%emt 0:00:10]} 11. Nbd2 {
[%emt 0:00:19]} Bb7 {[%emt 0:00:06]} 12. Bc2 {[%emt 0:00:19]} Re8 {[%emt 0:00:
00]} 13. Nf1 {[%emt 0:00:20]} Bf8 {[%emt 0:00:18]} 14. Ng3 {[%emt 0:00:42]} g6
{[%emt 0:00:07]} 15. a4 {[%emt 0:06:22]} c6 {[%emt 0:12:14]} 16. Bg5 {[%emt 0:
00:00]} h6 {[%emt 0:02:04]} 17. Bd2 {[%emt 0:01:41]} c5 {[%emt 0:03:02]} 18. d5
{[%emt 0:00:21]} c4 {[%emt 0:06:46]} 19. Be3 {[%emt 0:08:50]} Nc5 {[%emt 0:00:
00]} 20. Nd2 {[%emt 0:02:58]} Qc7 {[%emt 0:15:01]} 21. Qf3 {[%emt 0:04:26]} Qe7
{[%emt 0:04:38]} 22. Qe2 {[%emt 0:12:35]} Bg7 {[%emt 0:09:27]} 23. f4 {[%emt 0:
00:00]} exf4 {[%emt 0:02:37]} 24. Bxf4 {[%emt 0:03:20]} Nfd7 {[%emt 0:03:05]}
25. Nf3 {[%emt 0:12:12]} Ne5 {[%emt 0:04:08]} 26. Nxe5 {[%emt 0:03:02]} Bxe5 {
[%emt 0:01:08]} 27. Qe3 {[%emt 0:02:26]} Bxf4 {[%emt 0:05:27]} 28. Qxf4 {
[%emt 0:00:18]} Qe5 {[%emt 0:00:44]} 29. Qxe5 {[%emt 0:05:22]} dxe5 {[%emt 0:
00:00]} 30. axb5 {[%emt 0:03:58]} axb5 {[%emt 0:00:12]} 31. Nf1 {[%emt 0:00:44]
} Reb8 {[%emt 0:03:31]} 32. Ne3 {[%emt 0:01:15]} Bc8 {[%emt 0:00:32]} 33. Kf2 {
[%emt 0:02:02]} Kg7 {[%emt 0:03:00]} 34. Kf3 {[%emt 0:02:03]} h5 {[%emt 0:00:
00]} 35. Reb1 {[%emt 0:02:25]} Bd7 {[%emt 0:00:48]} 36. Bd1 {[%emt 0:07:41]} f6
{[%emt 0:04:56]} 37. g4 {[%emt 0:01:26]} hxg4+ {[%emt 0:00:11]} 38. hxg4 {
[%emt 0:01:03]} Rh8 {[%emt 0:01:40]} 39. Rxa8 {[%emt 0:01:00]} Rxa8 {[%emt 0:
00:00]} 40. Bc2 {[%emt 0:00:30]} Ra2 {[%emt 0:00:37]} 41. Kg3 {[%emt 0:31:44]}
Kh6 {[%emt 0:21:49]} 42. Rh1+ {[%emt 0:00:00]} Kg5 {[%emt 0:02:03]} 43. Rb1 {
[%emt 0:00:00]} Nb7 {[%emt 0:03:18]} 44. Bd1 {[%emt 0:00:00]} Nd6 {[%emt 0:00:
00]} 45. Bc2 {[%emt 0:00:00]} Bc8 {[%emt 0:01:29]} 46. Kf3 {[%emt 0:00:00]} Bd7
{[%emt 0:02:49]} 47. Kg3 {[%emt 0:00:00]} Nf7 {[%emt 0:00:37]} 48. b3 {[%emt 0:
00:00]} cxb3 {[%emt 0:00:07]} 49. Bxb3 {[%emt 0:00:00]} Re2 {[%emt 0:02:24]}
50. Kf3 {[%emt 0:00:00]} Rh2 {[%emt 0:00:01]} 51. Kg3 {[%emt 0:00:00]} Re2 {
[%emt 0:00:07]} 52. Kf3 {[%emt 0:00:00]} Rh2 {[%emt 0:00:19]} 53. Kg3 {[%emt 0:
00:00]} Rd2 {[%emt 0:02:12]} 54. Bc2 {[%emt 0:00:00]} Nh6 {[%emt 0:02:21]} 55.
Rd1 {[%emt 0:00:00]} Re2 {[%emt 0:00:19]} 56. Kf3 {[%emt 0:00:44]} Rxc2 {
[%emt 0:00:25]} 57. Nxc2 {[%emt 0:00:41]} Bxg4+ {[%emt 0:00:04]} 58. Ke3 {
[%emt 0:00:17]} Bxd1 {[%emt 0:00:06]} 59. Nb4 {[%emt 0:01:34]} Nf7 {[%emt 0:00:
00]} 60. Na6 {[%emt 0:00:41]} Nd6 {[%emt 0:00:38]} 61. Nc7 {[%emt 0:01:00]} Kg4
{[%emt 0:02:09]} 62. Ne6 {[%emt 0:00:59]} Bc2 {[%emt 0:00:00]} 63. Nc5 {
[%emt 0:00:49]} f5 {[%emt 0:00:38]} 64. exf5 {[%emt 0:00:25]} gxf5 {[%emt 0:00:
00]} 65. Nd7 {[%emt 0:00:36]} Nf7 {[%emt 0:00:47]} 66. Nc5 {[%emt 0:02:54]} Kg3
{[%emt 0:00:30]} 67. Nb7 {[%emt 0:01:35]} Be4 {[%emt 0:00:22]} 0-1

[Event "44th Chess Olympiad Women 2022"]
[Site "Chennai"]
[Date "2022.08.06"]
[Round "8.33"]
[White "Hng, Mei-En Emmanuelle"]
[Black "Sara Masood Abdullah"]
[Result "1-0"]
[WhiteElo "1997"]
[BlackElo "1677"]
[Annotator "NA RC"]
[PlyCount "81"]
[EventDate "2022.??.??"]
[TimeControl "60"]

1. e4 {[%emt 0:00:10]} e6 {[%emt 0:00:13]} 2. d3 {[%emt 0:00:32]} d5 {[%emt 0:
00:00]} 3. Qe2 {[%emt 0:00:22]} Be7 {[%emt 0:01:23]} 4. Nf3 {[%emt 0:01:08]}
Nf6 {[%emt 0:00:46]} 5. g3 {[%emt 0:00:44]} c5 {[%emt 0:00:53]} 6. Bg2 {
[%emt 0:00:47]} Nc6 {[%emt 0:00:20]} 7. O-O {[%emt 0:00:49]} O-O {[%emt 0:00:
00]} 8. Re1 {[%emt 0:01:08]} b5 {[%emt 0:03:38]} 9. Nbd2 {[%emt 0:09:05]} a5 {
[%emt 0:03:18]} 10. a4 {[%emt 0:10:53]} Nb4 {[%emt 0:11:57]} 11. Nf1 {[%emt 0:
00:00]} bxa4 {[%emt 0:03:41]} 12. exd5 {[%emt 0:08:35]} Nfxd5 {[%emt 0:08:04]}
13. c3 {[%emt 0:04:29]} Nc6 {[%emt 0:07:07]} 14. Rxa4 {[%emt 0:04:28]} Ba6 {
[%emt 0:06:04]} 15. N1d2 {[%emt 0:08:24]} Nb6 {[%emt 0:08:12]} 16. Qe4 {
[%emt 0:07:20]} Nxa4 {[%emt 0:07:11]} 17. Qxc6 {[%emt 0:00:23]} Nb6 {[%emt 0:
00:00]} 18. Ne5 {[%emt 0:00:39]} Rc8 {[%emt 0:01:31]} 19. Qf3 {[%emt 0:03:15]}
Bf6 {[%emt 0:04:11]} 20. Ndc4 {[%emt 0:05:44]} Nxc4 {[%emt 0:01:41]} 21. Nxc4 {
[%emt 0:00:48]} Bxc4 {[%emt 0:02:00]} 22. dxc4 {[%emt 0:00:02]} Qb6 {[%emt 0:
00:00]} 23. h4 {[%emt 0:00:26]} Rcd8 {[%emt 0:01:09]} 24. h5 {[%emt 0:00:32]}
e5 {[%emt 0:03:53]} 25. h6 {[%emt 0:05:22]} Rd6 {[%emt 0:05:22]} 26. Qg4 {
[%emt 0:02:24]} g6 {[%emt 0:06:55]} 27. Bd5 {[%emt 0:00:51]} Rfd8 {[%emt 0:00:
00]} 28. Qf3 {[%emt 0:00:57]} R8d7 {[%emt 0:01:42]} 29. g4 {[%emt 0:00:33]} Qd8
{[%emt 0:01:32]} 30. Be3 {[%emt 0:01:25]} e4 {[%emt 0:01:41]} 31. Qxe4 {
[%emt 0:00:30]} Re7 {[%emt 0:00:28]} 32. Qf4 {[%emt 0:00:50]} Be5 {[%emt 0:00:
00]} 33. Qf3 {[%emt 0:00:52]} Rf6 {[%emt 0:00:21]} 34. Qd1 {[%emt 0:01:39]} Qc7
{[%emt 0:01:01]} 35. Bg5 {[%emt 0:02:19]} Bh2+ {[%emt 0:00:43]} 36. Kh1 {
[%emt 0:00:13]} Rxe1+ {[%emt 0:00:59]} 37. Qxe1 {[%emt 0:00:00]} Re6 {[%emt 0:
00:00]} 38. Bxe6 {[%emt 0:00:12]} fxe6 {[%emt 0:00:25]} 39. Qxe6+ {[%emt 0:00:
00]} Kf8 {[%emt 0:00:11]} 40. Bf6 {[%emt 0:01:30]} Bf4 {[%emt 0:00:39]} 41.
Bg7+ {[%emt 0:30:10]} 1-0

[Event "44th Chess Olympiad Women 2022"]
[Site "Chennai"]
[Date "2022.08.06"]
[Round "8.33"]
[White "Hng, Mei-Xian Eunice"]
[Black "Tiba, Mahdi Attiyah"]
[Result "1-0"]
[WhiteElo "1823"]
[BlackElo "1759"]
[Annotator "NA RC"]
[PlyCount "41"]
[EventDate "2022.??.??"]
[TimeControl "60"]

1. e4 {[%emt 0:00:11]} d5 {[%emt 0:00:07]} 2. exd5 {[%emt 0:00:17]} Qxd5 {
[%emt 0:00:04]} 3. Nc3 {[%emt 0:00:27]} Qa5 {[%emt 0:00:02]} 4. d4 {[%emt 0:00:
00]} c6 {[%emt 0:00:12]} 5. Bc4 {[%emt 0:00:47]} Nf6 {[%emt 0:00:28]} 6. Nf3 {
[%emt 0:00:57]} Bf5 {[%emt 0:00:09]} 7. O-O {[%emt 0:02:12]} e6 {[%emt 0:00:10]
} 8. Bf4 {[%emt 0:02:29]} Nbd7 {[%emt 0:00:48]} 9. Re1 {[%emt 0:03:28]} Be7 {
[%emt 0:00:10]} 10. h3 {[%emt 0:02:59]} h6 {[%emt 0:00:22]} 11. g4 {[%emt 0:00:
00]} Bg6 {[%emt 0:07:22]} 12. Bg3 {[%emt 0:16:42]} Qd8 {[%emt 0:28:34]} 13. Qe2
{[%emt 0:09:04]} Kf8 {[%emt 0:21:18]} 14. Rad1 {[%emt 0:06:59]} Bb4 {[%emt 0:
00:00]} 15. Nh4 {[%emt 0:11:05]} Bh7 {[%emt 0:02:37]} 16. Bxe6 {[%emt 0:08:06]}
fxe6 {[%emt 0:02:44]} 17. Qxe6 {[%emt 0:00:16]} Ne8 {[%emt 0:11:31]} 18. d5 {
[%emt 0:07:29]} Qe7 {[%emt 0:13:58]} 19. Qxe7+ {[%emt 0:06:06]} Bxe7 {[%emt 0:
00:00]} 20. dxc6 {[%emt 0:00:06]} Bxh4 {[%emt 0:03:02]} 21. cxb7 {[%emt 0:00:
00]} 1-0

[Event "44th Chess Olympiad Women 2022"]
[Site "Chennai"]
[Date "2022.08.06"]
[Round "8.34"]
[White "Leung, Hoi Ting"]
[Black "Sanchez Tobar, Francisca Valenti"]
[Result "0-1"]
[WhiteElo "1277"]
[BlackElo "1839"]
[Annotator "NA RC"]
[PlyCount "64"]
[EventDate "2022.??.??"]
[TimeControl "60"]

1. d4 {[%emt 0:00:03]} Nf6 {[%emt 0:00:12]} 2. Bf4 {[%emt 0:00:10]} g6 {
[%emt 0:00:11]} 3. Nc3 {[%emt 0:00:13]} d5 {[%emt 0:00:10]} 4. Nf3 {[%emt 0:00:
00]} Bg7 {[%emt 0:00:46]} 5. Qd2 {[%emt 0:02:51]} O-O {[%emt 0:03:50]} 6. O-O-O
{[%emt 0:01:20]} c5 {[%emt 0:13:46]} 7. Bh6 {[%emt 0:14:47]} c4 {[%emt 0:02:53]
} 8. Bxg7 {[%emt 0:04:49]} Kxg7 {[%emt 0:00:07]} 9. Qf4 {[%emt 0:03:17]} Qa5 {
[%emt 0:02:43]} 10. e4 {[%emt 0:02:55]} dxe4 {[%emt 0:01:08]} 11. Nd2 {[%emt 0:
00:00]} b5 {[%emt 0:19:52]} 12. Ndxe4 {[%emt 0:04:14]} b4 {[%emt 0:03:54]} 13.
Nb1 {[%emt 0:09:09]} Qxa2 {[%emt 0:08:49]} 14. c3 {[%emt 0:09:56]} Bf5 {
[%emt 0:20:47]} 15. f3 {[%emt 0:04:24]} Nbd7 {[%emt 0:01:56]} 16. g4 {[%emt 0:
00:00]} Bxe4 {[%emt 0:00:25]} 17. fxe4 {[%emt 0:00:55]} Rab8 {[%emt 0:00:26]}
18. Qf3 {[%emt 0:12:58]} bxc3 {[%emt 0:00:38]} 19. Qxc3 {[%emt 0:02:19]} Nxe4 {
[%emt 0:04:09]} 20. Qa3 {[%emt 0:04:03]} Qxa3 {[%emt 0:00:19]} 21. Nxa3 {
[%emt 0:00:20]} Nf2 {[%emt 0:00:26]} 22. Bxc4 {[%emt 0:01:02]} Nxh1 {[%emt 0:
00:00]} 23. Rxh1 {[%emt 0:00:15]} Nf6 {[%emt 0:03:02]} 24. h3 {[%emt 0:02:44]}
Rfc8 {[%emt 0:01:05]} 25. Re1 {[%emt 0:02:27]} Rb4 {[%emt 0:00:38]} 26. Rxe7 {
[%emt 0:00:55]} Rbxc4+ {[%emt 0:00:35]} 27. Nxc4 {[%emt 0:00:08]} Rxc4+ {
[%emt 0:00:04]} 28. Kb1 {[%emt 0:00:23]} a5 {[%emt 0:00:14]} 29. Ra7 {[%emt 0:
00:00]} a4 {[%emt 0:00:15]} 30. Re7 {[%emt 0:00:58]} Rxd4 {[%emt 0:00:54]} 31.
Re3 {[%emt 0:00:30]} Nd5 {[%emt 0:00:10]} 32. b3 {[%emt 0:01:31]} Nxe3 {
[%emt 0:00:07]} 0-1

[Event "44th Chess Olympiad Women 2022"]
[Site "Chennai"]
[Date "2022.08.06"]
[Round "8.34"]
[White "Li, Joy Ching"]
[Black "Reyes Jara, Paula"]
[Result "1/2-1/2"]
[WhiteElo "1386"]
[BlackElo "1858"]
[Annotator "NA RC"]
[PlyCount "89"]
[EventDate "2022.??.??"]
[TimeControl "60"]

1. Nf3 {[%emt 0:00:03]} Nf6 {[%emt 0:03:25]} 2. g3 {[%emt 0:00:07]} g6 {
[%emt 0:00:08]} 3. Bg2 {[%emt 0:00:05]} Bg7 {[%emt 0:00:30]} 4. O-O {[%emt 0:
00:00]} O-O {[%emt 0:00:11]} 5. c4 {[%emt 0:00:10]} d6 {[%emt 0:01:06]} 6. d4 {
[%emt 0:00:20]} Nc6 {[%emt 0:02:04]} 7. Nc3 {[%emt 0:00:25]} e5 {[%emt 0:01:07]
} 8. d5 {[%emt 0:02:22]} Nb8 {[%emt 0:00:51]} 9. e4 {[%emt 0:03:01]} a5 {
[%emt 0:02:31]} 10. h3 {[%emt 0:04:02]} Na6 {[%emt 0:03:46]} 11. Be3 {[%emt 0:
00:00]} Nd7 {[%emt 0:03:11]} 12. Ne1 {[%emt 0:02:25]} f5 {[%emt 0:07:21]} 13.
Nd3 {[%emt 0:04:43]} b6 {[%emt 0:01:32]} 14. f4 {[%emt 0:04:08]} Ndc5 {[%emt 0:
00:00]} 15. fxe5 {[%emt 0:10:26]} Nxd3 {[%emt 0:01:18]} 16. Qxd3 {[%emt 0:00:
00]} Bxe5 {[%emt 0:01:30]} 17. Bf4 {[%emt 0:06:04]} Nc5 {[%emt 0:02:43]} 18.
Qe3 {[%emt 0:04:10]} Qf6 {[%emt 0:08:40]} 19. Bxe5 {[%emt 0:04:07]} Qxe5 {
[%emt 0:00:13]} 20. Rae1 {[%emt 0:05:14]} Ba6 {[%emt 0:05:13]} 21. b3 {[%emt 0:
00:00]} Rae8 {[%emt 0:00:09]} 22. Kh2 {[%emt 0:09:36]} Kg7 {[%emt 0:07:09]} 23.
Qd2 {[%emt 0:02:48]} Qf6 {[%emt 0:06:13]} 24. exf5 {[%emt 0:02:54]} Rxe1 {
[%emt 0:02:20]} 25. Qxe1 {[%emt 0:03:18]} gxf5 {[%emt 0:04:43]} 26. Qe3 {
[%emt 0:03:25]} Qe5 {[%emt 0:08:30]} 27. Re1 {[%emt 0:03:07]} Qxe3 {[%emt 0:00:
00]} 28. Rxe3 {[%emt 0:00:22]} Kf6 {[%emt 0:00:08]} 29. h4 {[%emt 0:01:05]} Bc8
{[%emt 0:04:57]} 30. Nb5 {[%emt 0:00:57]} Rf7 {[%emt 0:00:02]} 31. Nd4 {
[%emt 0:01:23]} Bd7 {[%emt 0:01:47]} 32. Bh3 {[%emt 0:02:44]} h6 {[%emt 0:00:
00]} 33. Kg2 {[%emt 0:03:58]} Kg6 {[%emt 0:04:26]} 34. Kh2 {[%emt 0:01:27]} f4
{[%emt 0:03:39]} 35. Bxd7 {[%emt 0:02:04]} fxe3 {[%emt 0:00:28]} 36. Be8 {
[%emt 0:00:11]} Ne4 {[%emt 0:01:51]} 37. Bxf7+ {[%emt 0:00:27]} Kxf7 {[%emt 0:
00:00]} 38. Kg2 {[%emt 0:01:04]} Nc3 {[%emt 0:02:03]} 39. Kf3 {[%emt 0:01:38]}
Nxa2 {[%emt 0:01:32]} 40. Kxe3 {[%emt 0:00:10]} Kf6 {[%emt 0:00:57]} 41. Kf4 {
[%emt 0:31:00]} Nc1 {[%emt 0:30:18]} 42. g4 {[%emt 0:00:43]} Nd3+ {[%emt 0:00:
00]} 43. Ke3 {[%emt 0:00:00]} Nc5 {[%emt 0:00:00]} 44. Kf4 {[%emt 0:00:00]}
Nd3+ {[%emt 0:00:00]} 45. Ke3 {[%emt 0:00:00]} 1/2-1/2